fUST/lending_fUST_20260127
["ID","MTS","AMOUNT","RATE_DAILY","PERIOD"]
[403699651,1769490985121,500.0,0.00034616,120]
[403699652,1769490985373,500.0,0.00034616,120]
[403699653,1769490987128,553.26426738,0.00034616,120]
[403699654,1769490988907,500.0,0.00034616,120]
[403699655,1769490989159,500.0,0.00034616,120]
[403699656,1769490989452,500.0,0.00034616,120]
[403699657,1769490994318,500.0,0.00034616,120]
[403699658,1769491000431,501.12864161,0.00034616,120]
[403699659,1769491002405,500.0,0.00034616,120]
[403699660,1769491002635,500.0,0.00034616,120]
[403699661,1769491002891,501.3683021,0.00034616,120]
[403699662,1769491003221,500.0,0.00034616,120]
[403699663,1769491003480,500.0,0.00034616,120]
[403699664,1769491003710,500.0,0.00034616,120]
[403699665,1769491010980,500.0,0.00034616,120]
[403699666,1769491011773,500.0,0.00034616,120]
[403699667,1769491012014,500.0,0.00034616,120]
[403699668,1769491012794,500.0,0.00034616,120]
[403699669,1769491016342,246.17204509,0.00034616,120]
[403699670,1769491018266,500.0,0.00034616,120]
[403699671,1769491018499,500.0,0.00034616,120]
[403699672,1769491018748,500.0,0.00034616,120]
[403699673,1769491018815,500.0,0.00034616,120]
[403699674,1769491018982,500.0,0.00034616,120]
[403699675,1769491020345,500.0,0.00034616,120]
[403699676,1769491020581,500.0,0.00034616,120]
[403699677,1769491024546,500.0,0.00034616,120]
[403699678,1769491024850,500.0,0.00034616,120]
[403699679,1769491025077,500.0,0.00034616,120]
[403699680,1769491026473,500.0,0.00034616,120]
[403699681,1769491026713,500.0,0.00034616,120]
[403699682,1769491026963,500.0,0.00034616,120]
[403699683,1769491027958,500.0,0.00034616,120]
[403699684,1769491028193,500.0,0.00034616,120]
[403699685,1769491028441,500.0,0.00034616,120]
[403699686,1769491029364,500.0,0.00034616,120]
[403699687,1769491029604,295.6365172,0.00034616,120]
[403699688,1769491030940,488.40232478,0.00034616,120]
[403699689,1769491031687,500.0,0.00034616,120]
[403699690,1769491032720,500.0,0.00034616,120]
[403699691,1769491033002,500.0,0.00034616,120]
[403699692,1769491034816,500.0,0.00034616,120]
[403699693,1769491035085,500.0,0.00034616,120]
[403699694,1769491036930,500.0,0.00034616,120]
[403699695,1769491037280,500.0,0.00034616,120]
[403699696,1769491039236,500.0,0.00034616,120]
[403699697,1769491039490,500.0,0.00034616,120]
[403699698,1769491039738,500.0,0.00034616,120]
[403699699,1769491039858,500.0,0.00034616,120]
[403699700,1769491040161,500.0,0.00034616,120]
[403699701,1769491040278,316.4821435,0.00034616,120]
[403699702,1769491040404,549.26798482,0.00034616,120]
[403699703,1769491042354,500.0,0.00034616,120]
[403699704,1769491042551,527.1388429,0.00034616,120]
[403699705,1769491043897,500.0,0.00034616,120]
[403699706,1769491044137,500.0,0.00034616,120]
[403699707,1769491045273,167.89265058,0.00030137,120]
[403699708,1769491045915,500.98138715,0.00034616,120]
[403699709,1769491045958,500.0,0.00034616,120]
[403699710,1769491047276,500.0,0.00034616,120]
[403699711,1769491047566,500.0,0.00034616,120]
[403699712,1769491047788,539.89676233,0.00034616,120]
[403699713,1769491049635,574.23311606,0.00034616,120]
[403699714,1769491050787,500.0,0.00034616,120]
[403699715,1769491050896,500.0,0.00034616,120]
[403699716,1769491051137,500.0,0.00034616,120]
[403699717,1769491051376,500.0,0.00034616,120]
[403699718,1769491051608,500.0,0.00034616,120]
[403699719,1769491051841,500.0,0.00034616,120]
[403699720,1769491054474,500.0,0.00034616,120]
[403699721,1769491054812,500.0,0.00034616,120]
[403699722,1769491055037,500.0,0.00034616,120]
[403699723,1769491055661,500.0,0.00034616,120]
[403699724,1769491056263,500.0,0.00034616,120]
[403699725,1769491056511,500.0,0.00034616,120]
[403699726,1769491059509,500.0,0.00034616,120]
[403699727,1769491062059,139146.43456,0.00034616,120]
[403699728,1769491063232,500.0,0.00034616,120]
[403699729,1769491063468,500.0,0.00034616,120]
[403699730,1769491063701,500.0,0.00034616,120]
[403699731,1769491063794,500.0,0.00034616,120]
[403699732,1769491064052,500.0,0.00034616,120]
[403699733,1769491064312,500.0,0.00034616,120]
[403699734,1769491068832,500.0,0.00034616,120]
[403699735,1769491069072,500.0,0.00034616,120]
[403699736,1769491069300,500.0,0.00034616,120]
[403699737,1769491069570,500.0,0.00034616,120]
[403699738,1769491071735,500.0,0.00034616,120]
[403699739,1769491071986,500.0,0.00034616,120]
[403699740,1769491072241,582.90027881,0.00034616,120]
[403699741,1769491072545,500.0,0.00034616,120]
[403699742,1769491072784,500.0,0.00034616,120]
[403699743,1769491073038,500.0,0.00034616,120]
[403699744,1769491074823,160.50848296,0.00034616,120]
[403699745,1769491075012,500.0,0.00034616,120]
[403699746,1769491075686,500.0,0.00034616,120]
[403699747,1769491075950,500.0,0.00034616,120]
[403699748,1769491076174,500.0,0.00034616,120]
[403699749,1769491076703,500.0,0.00034616,120]
[403699750,1769491076938,500.0,0.00034616,120]
[403699751,1769491077166,500.0,0.00034616,120]
[403699752,1769491078010,500.0,0.00034616,120]
[403699753,1769491078250,500.0,0.00034616,120]
[403699754,1769491078875,500.0,0.00034616,120]
[403699755,1769491079501,500.0,0.00034616,120]
[403699756,1769491082474,555.3562511,0.00034616,120]
[403699757,1769491088437,500.0,0.00034616,120]
[403699758,1769491088487,500.0,0.00034616,120]
[403699759,1769491089156,596.25544336,0.00034616,120]
[403699760,1769491095525,500.0,0.00034616,120]
[403699761,1769491095764,514.74574499,0.00034616,120]
[403699762,1769491096564,500.0,0.00034616,120]
[403699763,1769491099026,500.0,0.00034616,120]
[403699764,1769491099679,500.0,0.00034616,120]
[403699765,1769491099910,500.0,0.00034616,120]
[403699766,1769491101717,500.0,0.00034616,120]
[403699767,1769491101939,500.0,0.00034616,120]
[403699768,1769491102176,500.0,0.00034616,120]
[403699769,1769491102438,253.14394069,0.00034616,120]
[403699770,1769491103288,500.0,0.00034616,120]
[403699771,1769491104324,500.0,0.00034616,120]
[403699772,1769491104455,500.0,0.00034616,120]
[403699773,1769491105181,500.0,0.00034616,120]
[403699774,1769491106329,501.308257,0.00034616,120]
[403699775,1769491107574,500.0,0.00034616,120]
[403699776,1769491113283,500.0,0.00034616,120]
[403699777,1769491114558,500.0,0.00034616,120]
[403699778,1769491118084,500.0,0.00034616,120]
[403699779,1769491119934,500.0,0.00034616,120]
[403699780,1769491121242,500.0,0.00034616,120]
[403699781,1769491121936,500.0,0.00034616,120]
[403699782,1769491125248,399.08707185,0.00034616,120]
[403699783,1769491127002,500.0,0.00034616,120]
[403699784,1769491127803,500.0,0.00034616,120]
[403699785,1769491130280,538.96864785,0.00034616,120]
[403699786,1769491136711,500.0,0.00034616,120]
[403699787,1769491138419,500.0,0.00034616,120]
[403699788,1769491142727,500.0,0.00034616,120]
[403699789,1769491144213,1008.33447522,0.00034616,120]
[403699790,1769491145758,500.0,0.00034616,120]
[403699791,1769491145992,500.0,0.00034616,120]
[403699792,1769491159602,500.0,0.00034616,120]
[403699793,1769491161341,500.0,0.00034616,120]
[403699794,1769491164708,500.0,0.00034616,120]
[403699795,1769491176862,500.0,0.00034616,120]
[403699796,1769491180348,500.0,0.00034616,120]
[403699798,1769491197260,500.0,0.0003465,120]
[403699799,1769491209408,500.0,0.0003465,120]
[403699802,1769491220594,644.49,0.0003465,120]
[403699803,1769491223913,644.49,0.0003465,120]
[403699804,1769491224134,644.49,0.0003465,120]
[403699805,1769491224394,644.49,0.0003465,120]
[403699806,1769491224625,644.49,0.0003465,120]
[403699807,1769491224859,644.49,0.0003465,120]
[403699808,1769491225085,644.49,0.0003465,120]
[403699809,1769491225324,644.49,0.0003465,120]
[403699810,1769491225583,644.49,0.0003465,120]
[403699811,1769491225816,644.49,0.0003465,120]
[403699812,1769491226047,644.49,0.0003465,120]
[403699813,1769491226277,644.49,0.0003465,120]
[403699814,1769491226531,644.49,0.0003465,120]
[403699815,1769491226760,644.49,0.0003465,120]
[403699816,1769491227014,644.49,0.0003465,120]
[403699817,1769491227288,644.49,0.0003465,120]
[403699818,1769491227551,644.49,0.0003465,120]
[403699819,1769491227805,644.49,0.0003465,120]
[403699820,1769491228038,644.49,0.0003465,120]
[403699821,1769491228335,644.49,0.0003465,120]
[403699822,1769491228644,644.49,0.0003465,120]
[403699823,1769491228880,644.49,0.0003465,120]
[403699824,1769491229446,644.49,0.0003465,120]
[403699825,1769491229733,644.610372,0.0003465,120]
[403699826,1769491254211,500.0,0.0003465,120]
[403699830,1769491297743,-263.88403113,0.00012338,2]
[403699831,1769491300967,-10000.01,0.00012338,2]
[403699832,1769491307185,-4530.43079653,0.00012338,2]
[403699833,1769491307209,-939.14840694,0.00012338,2]
[403699834,1769491328097,500.0,0.0003465,120]
[403699835,1769491335239,500.0,0.0003465,120]
[403699836,1769491337131,500.0,0.0003465,120]
[403699838,1769491339070,500.0,0.0003465,120]
[403699839,1769491348477,500.0,0.0003465,120]
[403699841,1769491357280,500.0,0.0003465,120]
[403699842,1769491361055,500.0,0.0003465,120]
[403699843,1769491367340,-635.4521083,0.00012338,2]
[403699844,1769491370696,500.0,0.0003465,120]
[403699845,1769491377382,500.0,0.0003465,120]
[403699846,1769491405880,500.0,0.0003465,120]
[403699847,1769491413034,500.0,0.0003465,120]
[403699848,1769491417345,500.6005188,0.0003465,120]
[403699849,1769491426209,500.0,0.0003465,120]
[403699850,1769491458334,-164.7976313,0.00012541,2]
[403699851,1769491458596,500.0,0.0003465,120]
[403699852,1769491474616,500.0,0.0003465,120]
[403699853,1769491474843,619.35012509,0.0003465,120]
[403699854,1769491478103,501.52983639,0.0003465,120]
[403699855,1769491507656,500.0,0.00034656,120]
[403699856,1769491539137,-182.44755838,0.00012755,2]
[403699857,1769491541882,500.0,0.00034656,120]
[403699858,1769491546046,500.0,0.00034656,120]
[403699860,1769491571057,500.0,0.00034656,120]
[403699862,1769491576868,500.0,0.00034656,120]
[403699863,1769491577683,500.0,0.00034656,120]
[403699864,1769491577754,500.0,0.00034656,120]
[403699865,1769491577998,500.0,0.00034656,120]
[403699866,1769491578230,500.0,0.00034656,120]
[403699867,1769491578521,500.0,0.00034656,120]
[403699868,1769491578775,500.0,0.00034656,120]
[403699869,1769491578998,500.0,0.00034656,120]
[403699870,1769491579234,450.0,0.00034656,120]
[403699871,1769491586018,500.0,0.00034656,120]
[403699872,1769491596352,534.11207173,0.00034656,120]
[403699873,1769491603737,500.0,0.00034656,120]
[403699874,1769491609106,500.0,0.00034656,120]
[403699875,1769491610581,154.779176,0.00034656,120]
[403699876,1769491643126,-195.65165588,0.00012964,2]
[403699877,1769491643149,-181.28663924,0.00013172,2]
[403699878,1769491643172,-437.80156468,0.00013271,2]
[403699879,1769491646083,-762.19843532,0.00013271,2]
[403699880,1769491646104,-300.0,0.00013272,2]
[403699881,1769491646124,-300.0,0.00013272,2]
[403699882,1769491646144,-300.0,0.00013272,2]
[403699883,1769491646165,-300.0,0.00013272,2]
[403699884,1769491646185,-300.0,0.00013272,2]
[403699885,1769491646205,-266.36019488,0.00013273,2]
[403699886,1769491646414,115486.80587469,0.00034656,120]
[403699887,1769491694428,-391.20392421,8.645e-05,2]
[403699888,1769491697079,-172.8815005,8.645e-05,2]
[403699889,1769491697945,-3988.36457529,8.645e-05,2]
[403699890,1769491697974,-300.0,9.429e-05,2]
[403699891,1769491698025,-1423.28084942,9.43e-05,2]
[403699892,1769491699970,-198.88352428,9.43e-05,2]
[403699893,1769491700378,-2517.2743737,9.43e-05,2]
[403699894,1769491700409,-4965.4612526,9.43e-05,2]
[403699895,1769491701913,-368.42233384,0.00010216,2]
[403699896,1769491704000,-10000.01,0.00010216,2]
[403699897,1769491705300,-629.88729912,0.00010216,2]
[403699898,1769491706660,-2659.02036704,0.00010216,2]
[403699899,1769491706691,-420.0,0.00010372,2]
[403699900,1769491706738,-3841.96926592,0.00011002,2]
[403699901,1769491706865,-225.26767976,0.00011002,2]
[403699902,1769491706908,-10000.01,0.00011002,2]
[403699903,1769491707090,-4142.54305432,0.00011002,2]
[403699904,1769491707118,-587.0,0.00011409,2]
[403699905,1769491707166,-540.92389136,0.00011788,2]
[403699906,1769491707202,-10000.01,0.00011788,2]
[403699907,1769491707367,-10000.01,0.00011788,2]
[403699908,1769491707488,-2221.29610864,0.00011788,2]
[403699909,1769491708700,300.0,0.00010419,2]
[403699910,1769491709152,300.0,0.00010419,2]
[403699911,1769491709718,300.0,0.00010419,2]
[403699912,1769491710182,300.0,0.00010419,2]
[403699913,1769491710668,300.0,0.00010419,2]
[403699914,1769491711133,300.0,0.00010419,2]
[403699915,1769491711617,300.0,0.00010419,2]
[403699916,1769491712179,300.0,0.00010419,2]
[403699924,1769491712650,300.0,0.00010419,2]
[403699928,1769491713150,300.0,0.00010419,2]
[403699929,1769491713649,300.0,0.00010419,2]
[403699931,1769491714150,300.0,0.00010419,2]
[403699932,1769491714654,300.0,0.00010419,2]
[403699933,1769491717547,-300.0,0.00010419,2]
[403699934,1769491717572,-26.38217444,0.00010419,2]
[403699937,1769491722503,200.0,0.000245,120]
[403699940,1769491731251,-273.61782556,0.00010419,2]
[403699941,1769491731283,-823.0,0.0001255,2]
[403699942,1769491731456,-3906.77434888,0.00012574,2]
[403699943,1769491731532,-10000.01,0.00012574,2]
[403699944,1769491731667,-10000.01,0.00012574,2]
[403699945,1769491731922,-3407.89565112,0.00012574,2]
[403699949,1769491737295,500.0,0.0003013,120]
[403699960,1769491758211,478.16508256,8.028e-05,2]
[403699961,1769491765157,-2857.53491744,8.028e-05,2]
[403699962,1769491765208,-4284.94016512,8.758e-05,2]
[403699963,1769491765509,-2386.46983488,8.758e-05,2]
[403699964,1769491765563,-5227.07033024,9.488e-05,2]
[403699965,1769491765602,-276.9563874,9.488e-05,2]
[403699966,1769491765651,-4503.08328236,9.488e-05,2]
[403699967,1769491765688,-300.0,9.677e-05,2]
[403699968,1769491765721,-93.84343528,9.677e-05,2]
[403699969,1769491765786,-206.15656472,9.677e-05,2]
[403699970,1769491765822,-300.0,9.677e-05,2]
[403699971,1769491765856,-300.0,9.677e-05,2]
[403699972,1769491765888,-300.0,9.677e-05,2]
[403699973,1769491765923,-300.0,9.677e-05,2]
[403699974,1769491765955,-300.0,9.677e-05,2]
[403699975,1769491765988,-300.0,9.677e-05,2]
[403699976,1769491766023,-300.0,9.677e-05,2]
[403699977,1769491766056,-300.0,9.677e-05,2]
[403699978,1769491766231,-5200.01,0.00010217,2]
[403699979,1769491766256,-300.0,9.677e-05,2]
[403699980,1769491766267,-8142.8,0.00010217,2]
[403699981,1769491766278,-1557.21,0.00010947,2]
[403699982,1769491766310,-10000.01,0.00010947,2]
[403699983,1769491766351,-4878.72,0.00010947,2]
[403699984,1769491766376,-242.57,0.00010947,2]
[403699985,1769491766387,-4878.72,0.00011677,2]
[403699986,1769491766403,-5121.29,0.00011677,2]
[403699987,1769491766445,-10000.01,0.00011677,2]
[403699988,1769491766578,-14.2,0.00011677,2]
[403699989,1769491766633,-300.0,9.677e-05,2]
[403699990,1769491766651,-9671.61,0.00012407,2]
[403699991,1769491766691,-10000.01,0.00012407,2]
[403699992,1769491766816,-3678.3,0.00012407,2]
[403699993,1769491767123,300.0,9.677e-05,2]
[403699994,1769491767598,300.0,9.677e-05,2]
[403699995,1769491768246,300.0,9.677e-05,2]
[403700022,1769491831963,-5000.0,0.00012876,2]
[403700024,1769491831974,-1200.0,0.00013005,2]
[403700025,1769491831983,-5000.0,0.00013006,2]
[403700026,1769491831993,-300.0,0.00013136,2]
[403700027,1769491832002,-300.0,0.00013136,2]
[403700028,1769491832012,-300.0,0.00013136,2]
[403700029,1769491832021,-300.0,0.00013136,2]
[403700030,1769491832030,-300.0,0.00013136,2]
[403700031,1769491832039,-256.42888323,0.00013173,2]
[403700032,1769491832049,-371.51661841,0.00013272,2]
[403700033,1769491832058,-500.0,0.00013273,2]
[403700034,1769491832067,-167.89341447,0.00013273,2]
[403700035,1769491832077,-504.09641708,0.00013273,2]
[403700036,1769491832086,-500.0,0.00013273,2]
[403700037,1769491832095,-500.0,0.00013273,2]
[403700038,1769491832104,-151.68647456,0.00013273,2]
[403700039,1769491832114,-500.0,0.00013273,2]
[403700040,1769491832123,-501.6598105,0.00013273,2]
[403700041,1769491832133,-536.38976978,0.00013273,2]
[403700042,1769491832142,-633.98281822,0.00013273,2]
[403700043,1769491832152,-501.59260259,0.00013273,2]
[403700044,1769491832162,-502.07213985,0.00013273,2]
[403700045,1769491832174,-398.17572139,0.00013273,2]
[403700046,1769491832185,-501.71179234,0.00013273,2]
[403700047,1769491832194,-500.0,0.00013273,2]
[403700048,1769491832204,-500.0,0.00013273,2]
[403700049,1769491832214,-500.0,0.00013273,2]
[403700050,1769491832225,-548.88780002,0.00013273,2]
[403700051,1769491832234,-500.0,0.00013273,2]
[403700052,1769491832244,-500.0,0.00013273,2]
[403700053,1769491832253,-316.79142162,0.00013273,2]
[403700054,1769491832263,-501.13990547,0.00013273,2]
[403700055,1769491832272,-500.0,0.00013273,2]
[403700056,1769491832282,-500.0,0.00013273,2]
[403700057,1769491832291,-500.0,0.00013273,2]
[403700058,1769491832300,-500.91245948,0.00013273,2]
[403700059,1769491832310,-161.58428069,0.00013273,2]
[403700060,1769491832321,-467.66816605,0.00013273,2]
[403700061,1769491832331,-500.0,0.00013273,2]
[403700062,1769491832340,-500.0,0.00013273,2]
[403700063,1769491832350,-500.0,0.00013273,2]
[403700064,1769491832360,-162.25297545,0.00013273,2]
[403700065,1769491832371,-500.0,0.00013273,2]
[403700066,1769491832381,-500.0,0.00013273,2]
[403700067,1769491832391,-500.0,0.00013273,2]
[403700068,1769491832400,-500.0,0.00013273,2]
[403700069,1769491832409,-500.0,0.00013273,2]
[403700070,1769491832419,-500.0,0.00013273,2]
[403700071,1769491832430,-500.0,0.00013273,2]
[403700072,1769491832440,-500.0,0.00013273,2]
[403700073,1769491832449,-500.0,0.00013273,2]
[403700074,1769491832459,-300.0,0.00013399,2]
[403700075,1769491832468,-300.0,0.00013399,2]
[403700076,1769491832477,-4727.70481349,0.00013466,2]
[403700077,1769491832487,-600.0,0.00013537,2]
[403700078,1769491832496,-1425.7653778,0.00013596,2]
[403700079,1769491832506,-500.0,0.00013698,2]
[403700080,1769491832515,-522.81681569,0.00013698,2]
[403700081,1769491832525,-500.0,0.00013698,2]
[403700082,1769491832534,-500.0,0.00013698,2]
[403700083,1769491832544,-525.32488563,0.00013698,2]
[403700084,1769491832554,-500.0,0.00013698,2]
[403700085,1769491832563,-500.0,0.00013698,2]
[403700086,1769491832572,-500.0,0.00013698,2]
[403700087,1769491832581,-515.51215891,0.00013698,2]
[403700088,1769491832591,-2207.8,0.00013698,2]
[403700089,1769491832601,-2207.8,0.00013698,2]
[403700090,1769491832611,-2207.8,0.00013698,2]
[403700091,1769491832620,-2207.8,0.00013698,2]
[403700092,1769491832630,-501.76365168,0.00013699,2]
[403700093,1769491832642,-314.792435,0.00013699,2]
[403700094,1769491832652,-500.0,0.00013699,2]
[403700095,1769491832662,-507.77467851,0.00013699,2]
[403700096,1769491832671,-500.0,0.00013699,2]
[403700097,1769491832682,-500.0,0.00013699,2]
[403700098,1769491832692,-500.0,0.00013699,2]
[403700099,1769491832701,-500.0,0.00013699,2]
[403700100,1769491832713,-501.24396058,0.00013699,2]
[403700101,1769491832722,-500.75803963,0.00013699,2]
[403700102,1769491832731,-500.0,0.00013699,2]
[403700103,1769491832741,-500.84679195,0.00013699,2]
[403700104,1769491832750,-500.0,0.00013699,2]
[403700105,1769491832760,-500.0,0.00013699,2]
[403700106,1769491832770,-1041.66666667,0.00013746,2]
[403700107,1769491832781,-500.0,0.00013806,2]
[403700108,1769491832790,-517.09664357,0.00013821,2]
[403700109,1769491832800,-196.99444629,0.00013821,2]
[403700110,1769491832810,-1000.0,0.00013821,2]
[403700111,1769491832819,-406.87177582,0.00013821,2]
[403700112,1769491832828,-768.34650551,0.00013821,2]
[403700113,1769491832838,-1000.0,0.00013821,2]
[403700114,1769491832850,-1000.0,0.00013821,2]
[403700115,1769491832860,-197.57399603,0.00013821,2]
[403700116,1769491832868,-501.02510914,0.00013821,2]
[403700117,1769491832879,-500.0,0.00014246,2]
[403700118,1769491832889,-2207.8,0.00014246,2]
[403700119,1769491832899,-160.9968606,0.00014247,2]
[403700120,1769491832908,-500.0,0.00014247,2]
[403700121,1769491832918,-1001.32804994,0.00014247,2]
[403700122,1769491832928,-504.15902707,0.00014247,2]
[403700123,1769491832938,-592.85387235,0.00014247,2]
[403700124,1769491832947,-982.77854226,0.00014247,2]
[403700125,1769491832957,-1000.0,0.00014247,2]
[403700126,1769491832966,-1000.0,0.00014247,2]
[403700127,1769491832976,-1680.0,0.00014306,2]
[403700128,1769491832985,-500.0,0.00014368,2]
[403700129,1769491832994,-559.00085584,0.00014368,2]
[403700130,1769491833004,-446.97070643,0.00014368,2]
[403700131,1769491833014,-420.0,0.00014404,2]
[403700132,1769491833024,-372.0,0.00014404,2]
[403700133,1769491833034,-12861.71181605,0.00014842,2]
[403700134,1769491833043,-720.0,0.00014891,2]
[403700135,1769491833052,-500.0,0.00014952,2]
[403700136,1769491833062,-230.86895394,0.00014964,2]
[403700137,1769491833071,-921.12613264,0.00015,2]
[403700138,1769491833081,-151.0,0.0001506,2]
[403700139,1769491833090,-201.93286099,0.0001506,2]
[403700140,1769491833099,-201.93286099,0.0001506,2]
[403700141,1769491833108,-209.40437684,0.0001506,2]
[403700142,1769491833117,-668.65185757,0.0001506,2]
[403700143,1769491833126,-217.15233878,0.0001506,2]
[403700144,1769491833136,-225.18697532,0.0001506,2]
[403700145,1769491833145,-233.51889341,0.0001506,2]
[403700146,1769491833155,-242.15909246,0.0001506,2]
[403700147,1769491833164,-251.11897888,0.0001506,2]
[403700148,1769491833173,-260.4103811,0.0001506,2]
[403700149,1769491833185,-2674.60743027,0.0001506,2]
[403700150,1769491833195,-355.89009021,0.0001506,2]
[403700151,1769491833205,-553.64373807,0.0001506,2]
[403700152,1769491833214,-136210.07783838,0.000154,2]
[403700153,1769491833237,-1234.94503828,0.000154,2]
[403700154,1769491833248,-738.15826593,0.000154,2]
[403700155,1769491833259,-8724.02361949,0.000154,2]
[403700156,1769491833699,1167.7041365,0.0003013,120]
[403700162,1769491838068,-2146.98,8.747e-05,2]
[403700163,1769491838078,-4293.96,9.542e-05,2]
[403700165,1769491838088,-6440.94,0.00010337,2]
[403700166,1769491838098,-8587.92,0.00011132,2]
[403700167,1769491838107,-10734.9,0.00011928,2]
[403700168,1769491838117,-5000.0,0.00012747,2]
[403700169,1769491838127,-102765.97716691,0.000154,2]
[403700170,1769491838136,-151.0,0.00015608,2]
[403700171,1769491838146,-693.3919763,0.00015608,2]
[403700172,1769491838156,-2773.56790519,0.00015608,2]
[403700173,1769491838166,-574.12855637,0.00015608,2]
[403700174,1769491838176,-5000.0,0.0001564,2]
[403700175,1769491838186,-498.0,0.00015736,2]
[403700176,1769491838196,-587.0,0.00015794,2]
[403700177,1769491838206,-500.0,0.00015952,2]
[403700178,1769491838216,-500.0,0.00016008,2]
[403700179,1769491838226,-151.0,0.00016156,2]
[403700180,1769491838247,-719.04747942,0.00016156,2]
[403700181,1769491838257,-2876.18991768,0.00016156,2]
[403700182,1769491838267,-595.37131296,0.00016156,2]
[403700183,1769491838278,-500.0,0.00016317,2]
[403700184,1769491838288,-224.38668704,0.00016317,2]
[403700185,1769491838298,-883.4,0.00016318,3]
[403700186,1769491838308,-2207.8,0.00016326,2]
[403700187,1769491838318,-500.0,0.00016327,2]
[403700188,1769491838328,-181.21868477,0.00016327,2]
[403700189,1769491838338,-500.0,0.00016328,2]
[403700190,1769491838348,-518.94139039,0.00016328,2]
[403700191,1769491838359,-2207.8,0.00016328,2]
[403700192,1769491838369,-2207.8,0.00016328,2]
[403700193,1769491838379,-40845.6437687,0.00016328,2]
[403700194,1769491838389,-192.94280051,0.00016338,2]
[403700195,1769491838399,-864.0,0.0001638,2]
[403700196,1769491838410,-571.57411562,0.00016407,2]
[403700197,1769491838420,-289.24839489,0.00016429,2]
[403700198,1769491838430,-250.0,0.00016438,2]
[403700199,1769491838439,-212.5608784,0.00016704,2]
[403700200,1769491838449,-745.65223616,0.00016704,2]
[403700201,1769491838464,-2982.60894464,0.00016704,2]
[403700202,1769491838474,-468.23682246,0.00016704,2]
[403700203,1769491838483,-266.086252,0.00016964,2]
[403700204,1769491838494,-2207.8,0.0001701,2]
[403700205,1769491838504,-2013.46614846,0.00017147,2]
[403700206,1769491838517,-773.2413689,0.00017252,2]
[403700207,1769491838527,-3092.96547559,0.00017252,2]
[403700208,1769491838537,-823.0,0.00017318,2]
[403700209,1769491838547,-160.0,0.00017415,3]
[403700210,1769491838557,-179.0,0.00017433,2]
[403700211,1769491838567,-986.87380359,0.00017459,2]
[403700212,1769491838577,-160.0,0.00017654,4]
[403700213,1769491838588,-801.85129955,0.000178,2]
[403700214,1769491838598,-400.67290467,0.00017837,2]
[403700215,1769491838608,-160.0,0.00017893,5]
[403700216,1769491838618,-151.0,0.000179,2]
[403700217,1769491838627,-779.45186347,0.00017989,2]
[403700218,1769491838637,-3142.89481612,0.00017989,2]
[403700219,1769491838647,-1000.0,0.00018018,2]
[403700220,1769491838662,-1726.65095565,0.00018049,2]
[403700221,1769491838671,-1000.0,0.0001805,5]